Cogmind - Beta 11.1 @@@ ROGUE MODE // 2022.07.26 @ 11:23:21 Player: ZLD1 Result: Destroyed by Y-45 Defender with Beam Rifle Performance ------------- Evolutions (1) 500 Regions Visited (4) 800 Robots Destroyed (49) 245 Value Destroyed (1274) 1274 Prototype IDs (2) 40 Alien Tech Used (0) 0 Bonus (200) 200 TOTAL SCORE: 3059 Bonus ------- Entered Garrisons 200 Cogmind --------- Core Integrity 0/400 Matter 300/300 Energy 86/100 System Corruption 0% Temperature Hot (232) Movement Core (1450) Ox28 Location -9/Garrison Parts ------- > --- POWER (1) -------- (None) > --- PROPULSION (4) --- (None) > --- UTILITY (2) ------ Huge Storage Unit Improved Light Armor Plating > --- WEAPON (2) ------- Beam Rifle > --- INVENTORY (25) --- Light Ion Engine Improved Ion Engine Compact Wheel VTOL Module VTOL Module VTOL Module VTOL Module Heat Sink Small Storage Unit High-capacity Storage Unit High-capacity Matter Pod (200) Visual Processing Unit Improved Targeting Computer Improved Power Shielding Drone Bay (2/2) EM Pulse Gun Medium Laser Beam Rifle Beam Rifle Shotgun Katana Peak State ------------ > --- POWER ------------ Heavy Ion Engine > --- PROPULSION ------- Light Treads Light Treads Light Treads Improved Treads > --- UTILITY ---------- Huge Storage Unit Drone Bay > --- WEAPON ----------- Beam Rifle Improved Medium Laser > --- INVENTORY -------- Light Ion Engine Improved Ion Engine Improved Ion Engine Compact Wheel VTOL Module VTOL Module VTOL Module VTOL Module Heat Sink Small Storage Unit High-capacity Storage Unit High-capacity Matter Pod Visual Processing Unit Improved Targeting Computer Improved Power Shielding Improved Light Armor Plating Drone Bay EM Pulse Gun Medium Laser Beam Rifle Beam Rifle Shotgun Katana [Rating: 23] Favorites ----------- Power Improved Ion Engine Engine Improved Ion Engine Propulsion Aluminum Leg Treads Light Treads Leg Aluminum Leg Wheel Wheel Utility Huge Storage Unit Device Drone Bay Storage Huge Storage Unit Protection Improved Light Armor Plating Weapon Beam Rifle Energy Gun Beam Rifle Ballistic Gun Light Assault Rifle Build | -11 -10 -9 -9 -9 ------- Run | Scr Mat Mat Sto Gar Slots Evolved 2 | . . 2 . . Power . | . . . . . Propulsion 2 | . . 2 . . Utility . | . . . . . Weapon . | . . . . . Parts Attached 37 | 7 5 12 11 2 Power 5 | 2 . 2 1 . Engine 5 | 2 . 2 1 . Core . | . . . . . Reactor . | . . . . . Propulsion 19 | 2 1 8 8 . Treads 6 | . . . 6 . Leg 10 | . . 8 2 . Wheel 3 | 2 1 . . . Hover . | . . . . . Flight . | . . . . . Utility 6 | 1 3 . 1 1 Device 1 | . . . 1 . Storage 4 | 1 3 . . . Processor . | . . . . . Hackware . | . . . . . Protection 1 | . . . . 1 Artifact . | . . . . . Weapon 7 | 2 1 2 1 1 Energy Gun 5 | . 1 2 1 1 Energy Cannon . | . . . . . Ballistic Gun 2 | 2 . . . . Ballistic Cannon . | . . . . . Launcher . | . . . . . Special Weapon . | . . . . . Impact Weapon . | . . . . . Slashing Weapon . | . . . . . Piercing Weapon . | . . . . . Special Melee Weapon . | . . . . . Unidentified Prototypes 2 | . . 1 1 . Parts Lost 10 | . 2 1 . 7 Power 1 | . . . . 1 Propulsion 5 | . . 1 . 4 Utility 1 | . . . . 1 Weapon 3 | . 2 . . 1 Highest Loss Streak 6 | . 1 1 . 6 To Critical Strikes . | . . . . . Average Slot Usage (%) 98 | . 96 98 99 95 Engine 11 | . 14 11 11 10 Treads 14 | . . . 23 41 Leg 24 | . . 40 19 . Wheel 3 | . 28 1 . . Device 3 | . . . 8 3 Storage 17 | . 26 22 13 11 Energy Gun 20 | . 3 22 21 21 Ballistic Gun 2 | . 23 . . . Naked Turns . | . . . . . Heaviest Build 100 | 13 93 97 100 100 Greatest Support 83 | 26 26 40 83 83 Greatest Overweight (x) 4 | 4 3 3 2 2 Average Overweight (x) 1 | . 1 2 1 1 Largest Inventory Capacity 25 | 8 25 25 25 25 Average Capacity 23 | 6 18 25 25 25 Most Carried 25 | 6 20 25 25 23 Average Carried 21 | 4 14 21 23 21 Final Capacity 25 | 8 25 25 25 25 Final Carried 25 | 6 20 25 22 21 Class Distribution -------------------- 100% | Mutant Dominant Class ---------------- Mutant | -10/Materials Mutant | -9/Materials Mutant | -9/Storage Mutant | -9/Garrison Resources | -11 -10 -9 -9 -9 ----------- Run | Scr Mat Mat Sto Gar Matter Collected 816 | 191 86 375 144 20 Remotely . | . . . . . Salvage Created 1585 | . 99 737 503 246 Parts 110 | . 8 45 37 20 Haulers Intercepted . | . . . . . Recyclers Shooed . | . . . . . Parts Field Recycled . | . . . . . Retrieved Matter . | . . . . . Parts Self-Destructed . | . . . . . Prevented . | . . . . . Kills | -11 -10 -9 -9 -9 ------- Run | Scr Mat Mat Sto Gar Combat Hostiles Destroyed 45 | . 4 20 13 8 Guns 41 | . 4 20 10 7 Classes Destroyed 7 | . 2 5 . . Worker 2 | . . 1 1 . Builder 1 | . . 1 . . Watcher 1 | . . 1 . . Swarmer 17 | . 2 7 4 4 Grunt 19 | . 2 10 5 2 Duelist 2 | . . 2 . . Sentry 7 | . . 1 4 2 Best Kill Streak 6 | . 4 6 5 5 Combat Bots Only 5 | . 4 5 5 5 Max Kills in Single Turn 2 | . 1 2 1 1 Gunslinging 1 | . . 1 . . Exploded . | . . . . . Melee . | . . . . . Uniques/NPCs Destroyed . | . . . . . Combat | -11 -10 -9 -9 -9 -------- Run | Scr Mat Mat Sto Gar Damage Taken 2474 | . 254 655 522 1043 Core 437 | . 31 190 76 140 Absorbed by Shields 70 | . . . . 70 Core Remaining (%) 93 | 100 87 . . . Volleys Fired 111 | . 14 42 31 24 Largest 2 | . 2 2 2 2 Hottest 112 | . 40 112 112 112 Shots Fired 209 | . 19 84 62 44 Gun 209 | . 19 84 62 44 Cannon . | . . . . . Launcher . | . . . . . Special . | . . . . . Kinetic 19 | . 19 . . . Thermal 190 | . . 84 62 44 Explosive . | . . . . . Electromagnetic . | . . . . . Robot Hit Streak 12 | . 11 12 12 12 Robot Miss Streak 4 | . 1 4 3 2 Penetration Max . | . . . . . Secondary Targets 10 | . . 6 3 1 Max Gunslinging Chain 1 | . . 1 1 1 Shots Hit Robots 141 | . 15 52 42 32 Core Hits 70 | . 9 32 18 11 Critical Kills . | . . . . . Critical Parts Destroyed . | . . . . . Critical Strikes 13 | . . 6 6 1 Burn 13 | . . 6 6 1 Melee Attacks . | . . . . . Impact . | . . . . . Slashing . | . . . . . Piercing . | . . . . . Sneak Attacks . | . . . . . Combat Hostiles . | . . . . . Follow-up Attacks . | . . . . . Damage Inflicted 2084 | . 151 788 662 483 Guns 2077 | . 151 781 662 483 Cannons . | . . . . . Explosions . | . . . . . Melee . | . . . . . Ramming 7 | . . 7 . . Kinetic 151 | . 151 . . . Thermal 1926 | . . 781 662 483 Explosive . | . . . . . Electromagnetic . | . . . . . Impact . | . . . . . Slashing . | . . . . . Piercing . | . . . . . Highest Corruption . | . . . . . Average Corruption . | . . . . . Corruption Purged . | . . . . . Corruption Blocked . | . . . . . Overload Shots . | . . . . . Overflow Damage . | . . . . . Projectiles . | . . . . . Explosions . | . . . . . Melee . | . . . . . Knockbacks . | . . . . . Impact . | . . . . . Kinetic . | . . . . . Secondary . | . . . . . Self-Inflicted Damage . | . . . . . Shots . | . . . . . Rammed . | . . . . . Targets Rammed 1 | . . 1 . . Kicked 1 | . . 1 . . Crushed . | . . . . . Highest Temperature 357 | . 6 300 354 357 Average Temperature 132 | . 6 101 159 153 Received Heat Transfer 558 | . 24 201 147 186 Effects 3 | . . . 2 1 Energy Bleed 1 | . . . . 1 Interference 1 | . . . 1 . Matter Decay 1 | . . . 1 . Siege Activations . | . . . . . Robots Corrupted . | . . . . . Combat Hostiles . | . . . . . Parts Fried . | . . . . . Impact Corruptions . | . . . . . Robots Melted 4 | . . . 3 1 Combat Hostiles 4 | . . . 3 1 Parts Melted 14 | . . 5 6 3 Heat Transferred 5735 | . . 2442 1998 1295 Parts Sabotaged . | . . . . . Parts Stolen . | . . . . . Parts Stripped . | . . . . . Power Chain Reactions . | . . . . . Missiles Intercepted . | . . . . . Alert | -11 -10 -9 -9 -9 ------- Run | Scr Mat Mat Sto Gar Peak Influence 396 | . 140 385 392 396 Initial 226 | . . 54 162 226 Average 212 | . 42 228 231 283 Maximum Alert Level 1 | . . 1 1 1 Low Security (%) 49 | 100 100 50 48 . Level 1 50 | . . 49 51 100 Level 2 . | . . . . . Level 3 . | . . . . . Level 4 . | . . . . . Level 5 . | . . . . . High Security . | . . . . . Max Security . | . . . . . Squads Dispatched 4 | . 1 2 1 . Investigation . | . . . . . Extermination . | . . . . . Reinforcement 4 | . 1 2 1 . Assault . | . . . . . Garrison . | . . . . . Intercept . | . . . . . Searches Triggered . | . . . . . Construction Impeded . | . . . . . Haulers Reinforced . | . . . . . Active Scanning Responses . | . . . . . Cargo Convoy Interrupts . | . . . . . Stealth | -11 -10 -9 -9 -9 --------- Run | Scr Mat Mat Sto Gar Distress Signals 7 | . 3 3 1 . Communications Jammed . | . . . . . Distress Signals . | . . . . . Times Spotted 67 | . 10 25 15 17 Peak Tracking Total 10 | . 5 6 6 10 Tactical Retreats . | . . . . . Traps | -11 -10 -9 -9 -9 ------- Run | Scr Mat Mat Sto Gar Traps Triggered 3 | . . . 1 2 Indirectly . | . . . . . Trap Hack Attempts . | . . . . . Triggered . | . . . . . Disarmed . | . . . . . Reprogrammed . | . . . . . Reused . | . . . . . Traps Extracted . | . . . . . Installed . | . . . . . Triggered . | . . . . . Machines | -11 -10 -9 -9 -9 ---------- Run | Scr Mat Mat Sto Gar Machines Disabled . | . . . . . Max in Single Turn . | . . . . . Machines Sabotaged . | . . . . . Garrisons Compromised . | . . . . . Overloaded Fab Kills . | . . . . . Hacking | -11 -10 -9 -9 -9 --------- Run | Scr Mat Mat Sto Gar Machines Accessed 7 | . 1 1 5 . Terminals 5 | . 1 1 3 . Fabricators . | . . . . . Repair Stations . | . . . . . Recycling Units 1 | . . . 1 . Scanalyzers . | . . . . . Garrison Access 1 | . . . 1 . Total Hacks 8 | . 1 1 6 . Successful 7 | . 1 1 5 . Failed 1 | . . . 1 . Catastrophic . | . . . . . Database Lockouts . | . . . . . Manual . | . . . . . Terminals 6 | . 1 1 4 . Fabricators . | . . . . . Repair Stations . | . . . . . Recycling Units 1 | . . . 1 . Scanalyzers . | . . . . . Garrison Access 1 | . . . 1 . Terminal Hacks 5 | . 1 1 3 . Record 2 | . . 1 1 . Part Schematic 1 | . . . 1 . Open Door 1 | . . . 1 . Emergency Access Points 1 | . 1 . . . Fabricator Hacks . | . . . . . Repair Station Hacks . | . . . . . Recycling Unit Hacks 1 | . . . 1 . Report Inventory 1 | . . . 1 . Scanalyzer . | . . . . . Garrison Access Hacks 1 | . . . 1 . Unlock Access 1 | . . . 1 . Unauthorized Hacks . | . . . . . Terminals . | . . . . . Fabricators . | . . . . . Repair Stations . | . . . . . Recycling Units . | . . . . . Scanalyzers . | . . . . . Garrison Access . | . . . . . Data Cores Recovered . | . . . . . Used . | . . . . . Hacking Detections 2 | . . . 2 . Full Trace Events . | . . . . . Feedback Events . | . . . . . Feedback Blocked . | . . . . . Robot Schematics Acquired . | . . . . . Robots Built . | . . . . . Authchips . | . . . . . Time . | . . . . . Total Robot Build Rating . | . . . . . Part Schematics Acquired 1 | . . . 1 . Parts Built . | . . . . . Authchips . | . . . . . Time . | . . . . . Total Part Build Rating . | . . . . . Parts Repaired . | . . . . . Time . | . . . . . Parts Recycled . | . . . . . Recycled Matter . | . . . . . Retrieved Matter . | . . . . . Retrieved Components . | . . . . . Parts Scanalyzed . | . . . . . Part Schematics Acquired . | . . . . . Parts Damaged . | . . . . . Bothacking | -11 -10 -9 -9 -9 ------------ Run | Scr Mat Mat Sto Gar Used RIF Installer . | . . . . . Robots Hacked . | . . . . . Non-combat . | . . . . . Combat . | . . . . . Robot Hacks Applied . | . . . . . Relay Couplers Released . | . . . . . Fabnet Peak Effective % . | . . . . . Robots Rewired . | . . . . . Allies Hacked . | . . . . . Hacks Repelled . | . . . . . Allies | -11 -10 -9 -9 -9 -------- Run | Scr Mat Mat Sto Gar Total Allies . | . . . . . Largest Group . | . . . . . Highest-Rated Group . | . . . . . Highest-Rated Ally . | . . . . . Total Orders 5 | . . . 5 . ROAM 1 | . . . 1 . FOLLOW 1 | . . . 1 . EXPLORE 1 | . . . 1 . RETURN 2 | . . . 2 . Ally Attacks . | . . . . . Total Damage . | . . . . . Kills . | . . . . . Allies Corrupted . | . . . . . Allies Melted . | . . . . . Intel | -11 -10 -9 -9 -9 ------- Run | Scr Mat Mat Sto Gar Robot Analysis Total . | . . . . . Derelict Logs Recovered . | . . . . . Drone Launches 3 | . . . 3 . Drone Recoveries 3 | . . . 3 . Exploration | -11 -10 -9 -9 -9 ------------- Run | Scr Mat Mat Sto Gar Turns Passed 1919 | 65 165 761 700 228 Spaces Moved 658 | 58 104 210 222 64 Core 36 | 36 . . . . Treads 187 | . . . 123 64 Legs 309 | . . 210 99 . Wheels 126 | 22 104 . . . Hover . | . . . . . Flight . | . . . . . Fastest Speed 50 | 50 90 260 240 240 Average Speed 221 | 86 107 279 248 242 Slowest Speed 330 | 250 135 330 260 320 Overloaded Moves . | . . . . . Propulsion Burnouts . | . . . . . Robots Hopped . | . . . . . Cave-ins Triggered . | . . . . . Exploration Rate (%) 21 | 3 22 23 36 23 Regions Visited 4 Branch Regions 1 Pre-discovered Areas . | . . . . . Known Exits Taken 1 | . . . 1 . Unknown Exits Taken 3 | 1 1 1 . . Scrap Searched . | . . . . . Spaces Dug . | . . . . . Terrain Destroyed . | . . . . . Melee . | . . . . . Projectile . | . . . . . AOE . | . . . . . Terrain Rammed . | . . . . . Walls Destroyed . | . . . . . Machines Disabled . | . . . . . Actions | -11 -10 -9 -9 -9 --------- Run | Scr Mat Mat Sto Gar Total 911 | 69 140 298 310 94 Wait 50 | . 1 20 29 . Move 655 | 57 103 209 222 64 Hop . | . . . . . Pick Up 39 | 5 16 11 6 1 Fast Attach 9 | 6 . 1 2 . Attach 16 | . 2 5 7 2 Detach . | . . . . . Swap 12 | 1 3 6 2 . Drop 16 | . 1 3 11 1 Fire 111 | . 14 42 31 24 Melee . | . . . . . Ram . | . . . . . Kick 1 | . . 1 . . Crush . | . . . . . Escape Stasis 2 | . . . . 2 Rewire . | . . . . . Trap . | . . . . . Miscellaneous . | . . . . . Route ------- -11/Scrapyard -10/Materials -9/Materials -9/Storage -9/Garrison History --------- Turn | Location | Event 3 | -11/Scrapyard | Discovered new exit (range 15) 66 | -11/Scrapyard | Entered Materials 214 | -10/Materials | Discovered new exit (range 9) 231 | -10/Materials | Entered another Materials area 231 | -9/Materials | Evolved 2 slots: Propulsion x2 312 | -9/Materials | Build established: Mutant 950 | -9/Materials | Discovered new exit (range 7) 992 | -9/Materials | Entered Storage 1276 | -9/Storage | Core integrity fell below 50% 1692 | -9/Storage | Identified exit to Garrison 1692 | -9/Storage | Entered Garrison 1724 | -9/Garrison | Triggered checkpoint 1844 | -9/Garrison | Triggered checkpoint 1892 | -9/Garrison | Triggered checkpoint 1913 | -9/Garrison | Core integrity fell below 20% 1920 | -9/Garrison | Destroyed by Y-45 Defender with Beam Rifle Last Messages --------------- Overheating: Energy bleed (-50). S-10 Pest destroyed. Switching to secondary target: S-10 Pest. Flight Unit melted. S-10 Pest destroyed. Beams of light sweep through the air. An alarm sounds. Lgt. Treads destroyed. Garrison Door activated. Lgt. Treads destroyed. S-10 Pest heat damages Lgt. Assault Rifle. S-10 Pest heat spikes uncontrollably. Triggered Stasis Trap. A bubble of rippling energy engulfs the area. Field strength at 70. Imp. Treads destroyed. S-10 Pest destroyed. Hvy. Ion Engine destroyed. Beam Rifle destroyed. Stasis field depleted. Lgt. Treads destroyed. Map ----- +----------------------------------------------------+ | ?????????????????????????????????????????????????? | | #?######?????????????????????????????????????????? | | ""# #?????????????????????????????????????????? | | #?????????????????????????????????????????? | | ""# #?????????????????????????????????????????? | | ??### #?????????????????????????????????????????? | | ????# #?????????????????????????????????????????? | | ????# #?????????????????????????????????????????? | | ????# #?????????????????????????????????????????? | | ##### #?????????????????????????????????????????? | | %! [%* ##############????????????????????????????? | | #####= #????????????????????????????? | | #???# #????????????????????????????? | | #???############## #????????????????????????????? | | #????????????????# #????????????????????????????? | | #????????????????# #????????????????????????????? | | #????????????????# #?????????##?????????????????? | | #????????????????# #???????? +??????????????????? | | #????????????????# #######??[#??????????????????? | | #????????????????# ## ! #?=*#??????????????????? | | ????????????????## ##*% ##%%##?????????????????? | | ????????????????# =%[ s=*[%#?????????????????? | | ????????????????# s * #?????????????????? | | ????????????????# #?????????????????? | | ????????????????# ## ss## #?????????????????? | | ????????????????# ## ^^@#? #?????????????????? | | ??????????????# ^^^Y ????????????????? | | ??????????????# ^ Y #???????????????? | | ??????????????# ^ #???????????????? | | ??????????????# #???????????????? | | ??????????????### ## ## ###???????????????? | | ????????????????# ## #? #?????????????????? | | ????????????????# ? ? ?????????????????? | | ????????????????# ?? ????????????????? | | ????????????????# s= ? ###???????????????? | | ????????????????## ## s=%#???##?????????????????? | | ??????????????????? ?#s ???????????????????????? | | ?????????????????? ??#####???????????????????????? | | ?????????????????????????????????????????????????? | | ?????????????????????????????????????????????????? | | ?????????????????????????????????????????????????? | | ?????????????????????????????????????????????????? | | ?????????????????????????????????????????????????? | | ?????????????????????????????????????????????????? | | ?????????????????????????????????????????????????? | | ?????????????????????????????????????????????????? | | ?????????????????????????????????????????????????? | | ?????????????????????????????????????????????????? | | ?????????????????????????????????????????????????? | | ?????????????????????????????????????????????????? | +----------------------------------------------------+ Best States ------------- Heat Dissipation 28 Energy Generation 14 Energy Capacity 280 Matter Stores 500 Matter Capacity 500 Sight Range 16 Terrain Scan Density 10 Armor Coverage 150 Evasion (%) 50 Recoil Reduction 4 Item Schematics ----------------- Arm. Huge Wheel | -9/Storage | Hacked Robot Schematics ------------------ None Fabricated ------------ Nothing Alien Tech Used ----------------- None Achievements -------------- It's Just You Challenges ------------ None Game ------ Seed GreatAlphaCycler Manual? 0 Play Time 00:21:47 Cumulative 3.0 hours Start 2022.07.26 @ 10:50:22 End 2022.07.26 @ 11:23:21 Sessions 1 Manual Loads 0 Difficulty Rogue Special Mode None Game No. 5 Rogue 5 Adventurer 0 Explorer 0 Win Type - Total 0 Types 0/0/0/0/0/0/0/0/0 Lore% 7 Gallery% 9 Achievement% 8 Wizard Run 0 Options --------- ASCII 0 Keyboard 0 Movement Mouse Keybinds 0 Fullscreen 1 Font 24/Smallcaps Map View 64x52 Tactical HUD 0 Map Filters NONE Filters NONE Steam 1 RUN: 9c0d474d-933c-491c-b4c1-acedc86242b5